fUSD/lending_fUSD_20241118
["ID","MTS","AMOUNT","RATE_DAILY","PERIOD"]
[342514171,1731948637847,-500.0,9.999e-05,2]
[342514173,1731948637856,-500.0,9.999e-05,2]
[342514174,1731948637865,-500.0,9.999e-05,2]
[342514176,1731948637875,-500.84544395,9.999e-05,2]
[342514178,1731948637884,-500.0,9.999e-05,2]
[342514180,1731948637893,-500.0,9.999e-05,2]
[342514181,1731948637902,-500.0,9.999e-05,2]
[342514183,1731948637911,-500.0,9.999e-05,2]
[342514185,1731948637921,-500.0,9.999e-05,2]
[342514187,1731948637930,-500.0,9.999e-05,2]
[342514189,1731948637939,-500.0,9.999e-05,2]
[342514190,1731948637949,-500.0,9.999e-05,2]
[342514192,1731948637959,-500.0,9.999e-05,2]
[342514194,1731948637967,-500.0,9.999e-05,2]
[342514196,1731948637976,-500.0,9.999e-05,2]
[342514198,1731948637986,-500.0,9.999e-05,2]
[342514200,1731948637995,-500.0,9.999e-05,2]
[342514202,1731948638005,-500.0,9.999e-05,2]
[342514203,1731948638014,-500.0,9.999e-05,2]
[342514205,1731948638023,-500.0,9.999e-05,2]
[342514207,1731948638033,-500.0,9.999e-05,2]
[342514209,1731948638042,-438.4791366,9.999e-05,2]
[342514211,1731948638052,-255.09130422,9.999e-05,2]
[342514213,1731948638066,-500.0,9.999e-05,2]
[342514215,1731948638076,-500.0,9.999e-05,2]
[342514216,1731948638085,-500.0,9.999e-05,2]
[342514218,1731948638095,-500.0,9.999e-05,2]
[342514220,1731948638104,-500.0,9.999e-05,2]
[342514222,1731948638113,-500.0,9.999e-05,2]
[342514224,1731948638122,-500.0,9.999e-05,2]
[342514226,1731948638131,-569.37591869,9.999e-05,2]
[342514227,1731948638141,-4517.00761001,0.0001,2]
[342514230,1731948638152,-184993.62704043,0.0001,2]
[342514232,1731948638161,-111578.58351876,0.0001,2]
[342514235,1731948638182,-640108.72310613,0.0001,2]
[342514237,1731948638194,-831.81298728,0.0001,2]
[342514241,1731948638230,-122821.33578014,0.0001,2]
[342514243,1731948638241,-275.996721,0.0001,2]
[342514248,1731948638264,-416.76702936,0.0001,2]
[342514273,1731948638340,-500.0,9.863e-05,2]
[342514276,1731948638350,-9036.4,0.0001,2]
[342514279,1731948638361,-1049.084335,0.0001,2]
[342514283,1731948638372,-3079.16666141,0.0001,2]
[342514285,1731948638384,-325674.34610401,0.0001,2]
[342514287,1731948638395,-31922.33598082,0.0001,2]
[342514289,1731948638406,-8780.0,0.0001,2]
[342514298,1731948638500,-20555.27119659,0.0001,2]
[342514300,1731948638512,-28424.8216673,0.0001,2]
[342514302,1731948638524,-6502.02025881,0.0001,2]
[342514304,1731948638535,-1234.63522344,0.0001,2]
[342514306,1731948638546,-565.59090259,0.0001,2]
[342514308,1731948638557,-546.08760856,0.0001,2]
[342514311,1731948638570,-122610.45901701,0.0001,2]
[342514312,1731948638581,-2494.75000026,0.0001,2]
[342514315,1731948638592,-925.901525,0.0001,2]
[342514317,1731948638603,-17766.68125,0.0001,2]
[342514319,1731948638614,-1457.17439793,0.0001,2]
[342514321,1731948638625,-1000.0,0.0001,2]
[342514323,1731948638636,-5406.82931391,0.0001,2]
[342514324,1731948638647,-12776.20399787,0.0001,2]
[342514326,1731948638658,-306.80940732,0.0001,2]
[342514328,1731948638670,-669.6980231,0.0001,2]
[342514331,1731948638681,-2533.53930496,0.0001,2]
[342514338,1731948638886,-2512.94831907,0.0001,2]
[342514339,1731948638898,-3949.66852044,0.0001,2]
[342514340,1731948638910,-737.50905639,0.0001,2]
[342514341,1731948638921,-9052.93802517,0.0001,2]
[342514342,1731948638932,-4320.39338664,0.0001,2]
[342514343,1731948638949,-881.6623884,0.0001,2]
[342514344,1731948638960,-18982.10807493,0.0001,2]
[342514362,1731948640364,-500.0,9.863e-05,2]
[342514363,1731948640373,-150.0,9.875e-05,2]
[342514364,1731948640383,-150.0,9.971e-05,2]
[342514365,1731948640392,-443.199984,9.991e-05,2]
[342514366,1731948640401,-527.3949072,9.993e-05,2]
[342514367,1731948640411,-611.5898304,9.993e-05,2]
[342514368,1731948640420,-695.7847536,9.993e-05,2]
[342514369,1731948640433,-20200.52366938,0.0001,2]
[342514370,1731948640525,-657.21309157,9.993e-05,2]
[342514371,1731948640538,-122.76658523,9.993e-05,2]
[342514372,1731948640547,-9790.58418561,0.0001,2]
[342514373,1731948640583,-6356.8095196,0.0001,2]
[342514374,1731948640594,-550.08904819,0.0001,2]
[342514375,1731948641883,-150.0,9.747e-05,2]
[342514376,1731948641892,-124.68869892,9.865e-05,2]
[342514377,1731948641903,-25.31130108,9.865e-05,2]
[342514378,1731948641912,-1954.48274163,0.0001,2]
[342514379,1731948641923,-1783.79797199,0.0001,2]
[342514380,1731948641934,-729.41561014,0.0001,2]
[342514381,1731948641945,-600.70263248,0.0001,2]
[342514382,1731948641968,-34448.46528685,0.0001,2]
[342514383,1731948641980,-14769.2,0.0001,2]
[342514384,1731948641991,-475.10769815,0.0001,2]
[342514386,1731948642003,-1087.25603098,0.0001,2]
[342514387,1731948642014,-1156.2,0.0001,2]
[342514389,1731948642025,-2689.99555988,0.0001,2]
[342514391,1731948642036,-333.81892786,0.0001,2]
[342514393,1731948642047,-460.63094984,0.0001,2]
[342514503,1731948643307,-6233.990245,0.0001,2]
[342514513,1731948643364,-2700.57453451,0.0001,2]
[342514516,1731948643375,-7247.28537303,0.0001,2]
[342514519,1731948643386,-2169.16448293,0.0001,2]
[342514522,1731948643398,-877.45571226,0.0001,2]
[342514525,1731948643409,-448.2769964,0.0001,2]
[342514529,1731948643420,-1747.15260035,0.0001,2]
[342514541,1731948643479,-2240.0,0.0001,2]
[342514548,1731948643537,-2203.01905639,0.0001,2]
[342514549,1731948643548,-527.15743174,0.0001,2]
[342514550,1731948643594,-82781.48216442,0.0001,2]
[342514551,1731948643606,-2883.70931009,0.0001,2]
[342514552,1731948643617,-7381.98484755,0.0001,2]
[342514576,1731948646338,-500.0,9.863e-05,2]
[342514579,1731948646348,-12358.54932378,0.0001,2]
[342514580,1731948646395,-1199.4999999,0.0001,2]
[342514581,1731948646408,-7092.91381438,0.0001,2]
[342514582,1731948646420,-45555.64446131,0.0001,2]
[342514583,1731948646453,-50071.18910585,0.0001,2]
[342514584,1731948646465,-32365.138725,0.0001,2]
[342514585,1731948646514,-2086.79999729,0.0001,2]
[342514586,1731948646526,-11513.61200484,0.0001,2]
[342514587,1731948646538,-300.0,0.0001,2]
[342514588,1731948646549,-4133.71597472,0.0001,2]
[342514589,1731948646561,-562.09999468,0.0001,2]
[342514590,1731948646578,-8800.0,0.0001,2]
[342514591,1731948646589,-2137.90186013,0.0001,2]
[342514592,1731948646632,-1948.34796499,0.0001,2]
[342514632,1731948999669,150.0,8.503e-05,2]
[342514633,1731949019866,588.47,8.219e-05,2]
[342514634,1731949257009,294.81,6.797e-05,2]
[342514635,1731949258136,1000.0,8.496e-05,2]
[342514636,1731949384869,250.0,8.445e-05,2]
[342514637,1731949432693,5541.18,8.471e-05,2]
[342514638,1731949440120,18997.43,8.471e-05,2]
[342514639,1731949479256,200.0,8.407e-05,2]
[342514640,1731949493372,165.01,8.441e-05,2]
[342514641,1731949495287,3797.24,8.417e-05,2]
[342514642,1731949527679,250.0,8.476e-05,2]
[342514643,1731949533641,1054.0,8.503e-05,2]
[342514644,1731949554759,1054.0,8.503e-05,2]
[342514645,1731949614509,156.63,8.425e-05,2]
[342514646,1731949688628,559.04,8.219e-05,2]
[342514649,1731949783610,1261.06,8.312e-05,2]
[342514666,1731949831596,-706.98408904,8.509e-05,2]
[342514667,1731949831608,-19.57591096,8.509e-05,2]
[342514668,1731949831617,-886.24,8.517e-05,2]
[342514669,1731949831627,-2000.0,8.541e-05,2]
[342514670,1731949831637,-250.0,8.581e-05,2]
[342514671,1731949831646,-428.393425,8.593e-05,2]
[342514672,1731949831655,-372.57,8.596e-05,2]
[342514673,1731949831665,-627.86,8.636e-05,2]
[342514674,1731949831674,-1713.43,8.704e-05,2]
[342514675,1731949831683,-1054.0,8.801e-05,2]
[342514676,1731949831692,-254.42,8.804e-05,2]
[342514677,1731949831702,-300.0,8.998e-05,2]
[342514678,1731949831715,-2983.89,8.999e-05,2]
[342514679,1731949831724,-764.54,8.999e-05,2]
[342514680,1731949831734,-500.0,9e-05,2]
[342514681,1731949831743,-500.0,9e-05,2]
[342514682,1731949831753,-500.0,9e-05,2]
[342514683,1731949831767,-522.95,9e-05,2]
[342514684,1731949831776,-400.0,9e-05,3]
[342514685,1731949831785,-440.49,9.041e-05,2]
[342514686,1731949831795,-763.3,9.041e-05,2]
[342514687,1731949831806,-900.0,9.1e-05,3]
[342514688,1731949831815,-150.0,9.177e-05,2]
[342514689,1731949831825,-634.05,9.178e-05,2]
[342514690,1731949831835,-150.0,9.178e-05,2]
[342514691,1731949831845,-968.67,9.178e-05,2]
[342514692,1731949831854,-362.36,9.178e-05,2]
[342514693,1731949831863,-433.34,9.178e-05,2]
[342514694,1731949831873,-300.0,9.178e-05,2]
[342514695,1731949831882,-968.67,9.178e-05,2]
[342514696,1731949831891,-433.34,9.178e-05,2]
[342514697,1731949831901,-968.67,9.178e-05,2]
[342514698,1731949831910,-300.0,9.178e-05,2]
[342514699,1731949831919,-433.34,9.178e-05,2]
[342514700,1731949831928,-968.67,9.178e-05,2]
[342514701,1731949831937,-433.34,9.178e-05,2]
[342514703,1731949831946,-587.50685584,9.178e-05,2]
[342514706,1731949831967,-381.16314416,9.178e-05,2]
[342514708,1731949831976,-433.34,9.178e-05,2]
[342514710,1731949831985,-968.67,9.178e-05,2]
[342514712,1731949831995,-433.34,9.178e-05,2]
[342514714,1731949832004,-968.67,9.178e-05,2]
[342514715,1731949832013,-433.34,9.178e-05,2]
[342514717,1731949832022,-968.67,9.178e-05,2]
[342514719,1731949832031,-433.34,9.178e-05,2]
[342514721,1731949832040,-883.16564058,9.178e-05,2]
[342514802,1731949837554,-85.50435942,9.178e-05,2]
[342514803,1731949837564,-1146.93839058,9.2e-05,3]
[342514804,1731949837575,-253.06160942,9.2e-05,3]
[342514805,1731949837584,-1054.0,9.264e-05,2]
[342514806,1731949837594,-150.0,9.278e-05,2]
[342514807,1731949837603,-866.54,9.278e-05,2]
[342514808,1731949837613,-755.0,9.284e-05,2]
[342514809,1731949837622,-1900.0,9.3e-05,3]
[342514810,1731949837632,-180.55,9.317e-05,2]
[342514811,1731949837642,-150.0,9.352e-05,2]
[342514812,1731949837651,-2400.0,9.4e-05,3]
[342514813,1731949837661,-261.83406558,9.494e-05,2]
[342514814,1731949837671,-10002.20378122,9.494e-05,2]
[342514815,1731949837681,-10119.1266,9.495e-05,2]
[342514816,1731949837690,-2581.478,9.495e-05,2]
[342514817,1731949837699,-9740.3621,9.495e-05,2]
[342514818,1731949837711,-4260.78288789,9.495e-05,2]
[342514819,1731949837981,-143.86141211,9.495e-05,2]
[342514820,1731949837991,-9929.5088,9.495e-05,2]
[342514821,1731949838001,-1431.7459,9.495e-05,2]
[342514822,1731949838010,-1477.2487,9.495e-05,2]
[342514823,1731949838019,-263.6615,9.495e-05,2]
[342514824,1731949838029,-400.0,9.5e-05,3]
[342514825,1731949838038,-1000.0,9.558e-05,2]
[342514826,1731949838048,-1890.0059,9.595e-05,2]
[342514827,1731949838057,-10408.2540043,9.595e-05,2]
[342514828,1731949838068,-379.23202482,9.595e-05,2]
[342514829,1731949838079,-7233.84667261,9.595e-05,2]
[342514831,1731949838091,-27365.47200001,9.595e-05,2]
[342514832,1731949838102,-396.13036463,9.595e-05,2]
[342514833,1731949838114,-618.48,9.595e-05,2]
[342514834,1731949838130,-558.9401819,9.595e-05,2]
[342514835,1731949838141,-5661.16848746,9.595e-05,2]
[342514836,1731949838152,-5046.15744276,9.595e-05,2]
[342514837,1731949838164,-2347.33412827,9.595e-05,2]
[342514838,1731949838175,-1565.98017417,9.595e-05,2]
[342514839,1731949838190,-15807.82400029,9.595e-05,2]
[342514841,1731949838202,-457.2847569,9.595e-05,2]
[342514842,1731949841232,-4111.6188928,9.595e-05,2]
[342514843,1731949841243,-480.06546222,9.595e-05,2]
[342514844,1731949841343,-571.47561462,9.595e-05,2]
[342514862,1731949842513,-65901.78239224,9.595e-05,2]
[342514863,1731949842522,-47600.3596,9.595e-05,2]
[342514864,1731949842531,-350.7286,9.595e-05,2]
[342514865,1731949842541,-400.0,9.6e-05,2]
[342514867,1731949842550,-200.0,9.6e-05,2]
[342514869,1731949842560,-400.0,9.6e-05,3]
[342514871,1731949842569,-374.26,9.67e-05,2]
[342514873,1731949842578,-560.1,9.67e-05,2]
[342514874,1731949842586,-7207.57,9.67e-05,2]
[342514875,1731949842595,-1092.42,9.67e-05,2]
[342514876,1731949842604,-6946.41,9.67e-05,2]
[342514877,1731949842613,-400.0,9.7e-05,3]
[342514878,1731949842623,-627.86,9.716e-05,2]
[342514879,1731949842632,-1054.0,9.752e-05,2]
[342514880,1731949842642,-578.0,9.8e-05,2]
[342514881,1731949842652,-38170.43439535,9.8e-05,2]
[342514882,1731949842662,-400.0,9.8e-05,3]
[342514883,1731949842671,-150.0,9.801e-05,2]
[342514884,1731949842680,-649.77069488,9.863e-05,2]
[342514885,1731949842690,-500.0,9.863e-05,2]
[342514886,1731949842699,-500.0,9.863e-05,2]
[342514887,1731949842709,-500.0,9.863e-05,2]
[342514888,1731949842723,-500.13794761,9.863e-05,2]
[342514889,1731949842733,-500.0,9.863e-05,2]
[342514890,1731949842742,-500.0,9.863e-05,2]
[342514891,1731949842752,-500.0,9.863e-05,2]
[342514892,1731949842766,-500.0,9.863e-05,2]
[342514893,1731949842775,-500.0,9.863e-05,2]
[342514894,1731949842784,-500.0,9.863e-05,2]
[342514895,1731949842793,-500.0,9.863e-05,2]
[342514896,1731949842803,-500.31080506,9.863e-05,2]
[342514897,1731949842812,-500.0,9.863e-05,2]
[342514898,1731949842822,-500.0,9.863e-05,2]
[342514899,1731949842831,-500.0,9.863e-05,2]
[342514900,1731949842842,-500.0,9.863e-05,2]
[342514901,1731949842851,-500.0,9.863e-05,2]
[342514902,1731949842860,-500.0,9.863e-05,2]
[342514904,1731949842869,-500.0,9.863e-05,2]
[342514906,1731949842879,-352.11298858,9.863e-05,2]
[342514908,1731949842891,-148.70079941,9.863e-05,2]
[342514910,1731949842900,-500.0,9.863e-05,2]
[342514912,1731949842909,-500.0,9.863e-05,2]
[342514914,1731949842918,-350.15481707,9.863e-05,2]
[342514916,1731949842930,-149.84518293,9.863e-05,2]
[342514918,1731949842939,-500.0,9.863e-05,2]
[342514920,1731949842948,-385.70644775,9.863e-05,2]
[342514924,1731949842975,-114.29355225,9.863e-05,2]
[342514927,1731949842984,-575.70161806,9.863e-05,2]
[342514930,1731949842993,-339.77109124,9.863e-05,2]
[342514931,1731949843002,-500.0,9.863e-05,2]
[342514933,1731949843011,-502.32457019,9.863e-05,2]
[342514934,1731949843020,-450.89522209,9.863e-05,2]
[342514935,1731949843029,-322.84726696,9.863e-05,2]
[342514936,1731949843040,-177.95310987,9.863e-05,2]
[342514937,1731949843049,-500.0,9.863e-05,2]
[342514938,1731949843059,-500.0,9.863e-05,2]
[342514939,1731949843067,-500.0,9.863e-05,2]
[342514940,1731949843076,-199.4471227,9.863e-05,2]
[342514941,1731949843085,-500.0,9.863e-05,2]
[342514942,1731949843094,-500.0,9.863e-05,2]
[342514943,1731949843103,-500.0,9.863e-05,2]
[342514944,1731949843113,-500.0,9.863e-05,2]
[342514945,1731949843122,-500.0,9.863e-05,2]
[342514946,1731949843131,-500.0,9.863e-05,2]
[342514947,1731949843140,-303.13860168,9.863e-05,2]
[342514948,1731949843152,-196.86139832,9.863e-05,2]
[342514949,1731949843161,-134.45860168,9.863e-05,2]
[342514950,1731949843171,-291.32759771,9.863e-05,2]
[342514951,1731949843181,-500.0,9.863e-05,2]
[342514952,1731949843190,-500.0,9.863e-05,2]
[342514953,1731949843199,-500.0,9.863e-05,2]
[342514954,1731949843208,-500.80428188,9.863e-05,2]
[342514955,1731949843220,-500.0,9.863e-05,2]
[342514956,1731949843229,-325.20718848,9.863e-05,2]
[342514957,1731949843238,-352.06,9.863e-05,2]
[342514958,1731949843247,-500.0,9.863e-05,2]
[342514959,1731949843256,-500.0,9.863e-05,2]
[342514960,1731949843265,-500.0,9.863e-05,2]
[342514961,1731949843274,-501.43967137,9.863e-05,2]
[342514962,1731949843283,-500.0,9.863e-05,2]
[342514963,1731949843292,-217.53608429,9.863e-05,2]
[342514964,1731949843302,-500.0,9.863e-05,2]
[342514965,1731949843311,-500.0,9.863e-05,2]
[342514966,1731949843320,-500.0,9.863e-05,2]
[342514967,1731949843329,-555.96384671,9.863e-05,2]
[342514968,1731949843338,-500.0,9.863e-05,2]
[342514969,1731949843347,-500.0,9.863e-05,2]
[342514970,1731949843356,-514.03286218,9.863e-05,2]
[342514971,1731949843366,-500.0,9.863e-05,2]
[342514972,1731949843375,-252.16,9.863e-05,2]
[342514973,1731949843384,-500.0,9.863e-05,2]
[342514974,1731949843393,-500.0,9.863e-05,2]
[342514975,1731949843401,-500.0,9.863e-05,2]
[342514976,1731949843411,-369.34474276,9.863e-05,2]
[342514977,1731949843422,-130.65525724,9.863e-05,2]
[342514978,1731949843431,-500.0,9.863e-05,2]
[342514979,1731949843441,-500.0,9.863e-05,2]
[342514980,1731949843449,-500.0,9.863e-05,2]
[342514981,1731949843459,-500.0,9.863e-05,2]
[342514982,1731949843471,-500.0,9.863e-05,2]
[342514983,1731949843481,-500.0,9.863e-05,2]
[342514984,1731949843490,-500.0,9.863e-05,2]
[342514985,1731949843499,-496.6586558,9.863e-05,2]
[342514986,1731949843511,-3.3413442,9.863e-05,2]
[342514987,1731949843520,-500.0,9.863e-05,2]
[342514988,1731949843529,-611.93763965,9.863e-05,2]
[342514989,1731949843539,-500.0,9.863e-05,2]
[342514990,1731949843548,-500.0,9.863e-05,2]
[342514991,1731949843558,-500.0,9.863e-05,2]
[342514992,1731949843567,-500.0,9.863e-05,2]
[342514993,1731949843576,-500.0,9.863e-05,2]
[342514994,1731949843585,-500.0,9.863e-05,2]
[342514995,1731949843594,-500.0,9.863e-05,2]
[342514996,1731949843603,-525.1628119,9.863e-05,2]
[342514997,1731949843613,-796.94,9.863e-05,2]
[342514998,1731949843623,-570.99279316,9.863e-05,2]
[342514999,1731949843632,-338.37949642,9.863e-05,2]
[342515000,1731949843644,-161.62050358,9.863e-05,2]
[342515001,1731949843653,-291.70386867,9.863e-05,2]
[342515002,1731949843662,-500.0,9.863e-05,2]
[342515003,1731949843672,-361.46994166,9.863e-05,2]
[342515009,1731949845615,-968.67,9.178e-05,2]
[342515011,1731949845625,-433.34,9.178e-05,2]
[342515012,1731949845635,-138.53005834,9.863e-05,2]
[342515013,1731949845645,-500.0,9.863e-05,2]
[342515014,1731949845654,-500.0,9.863e-05,2]
[342515015,1731949845663,-621.38,9.863e-05,2]
[342515016,1731949845673,-772.35,9.863e-05,2]
[342515017,1731949845682,-500.0,9.863e-05,2]
[342515018,1731949845692,-500.0,9.863e-05,2]
[342515019,1731949845703,-500.0,9.863e-05,2]
[342515020,1731949845716,-500.0,9.863e-05,2]
[342515021,1731949845727,-500.0,9.863e-05,2]
[342515022,1731949845737,-500.0,9.863e-05,2]
[342515023,1731949845746,-557.05,9.863e-05,2]
[342515024,1731949845755,-500.0,9.863e-05,2]
[342515025,1731949845769,-332.75527609,9.863e-05,2]
[342515026,1731949845778,-178.98013,9.863e-05,2]
[342515027,1731949845787,-500.0,9.863e-05,2]
[342515028,1731949845797,-500.0,9.863e-05,2]
[342515029,1731949845807,-500.0,9.863e-05,2]
[342515030,1731949845816,-950.91,9.863e-05,2]
[342515031,1731949845825,-217.7588,9.863e-05,2]
[342515032,1731949845835,-683.46,9.863e-05,2]
[342515033,1731949845847,-420.0,9.897e-05,2]
[342515034,1731949845858,-18245.1399,9.9e-05,2]
[342515035,1731949845867,-27897.399,9.9e-05,2]
[342515036,1731949845877,-1944.55994,9.9e-05,2]
[342515037,1731949845887,-631.6596,9.9e-05,2]
[342515038,1731949845896,-9847.2509,9.9e-05,2]
[342515039,1731949845906,-1198.0,9.9e-05,3]
[342515040,1731949845915,-1102.14805548,9.951e-05,2]
[342515041,1731949845925,-1102.14805548,9.954e-05,2]
[342515042,1731949845934,-1102.14805548,9.966e-05,2]
[342515043,1731949845944,-500.0,9.973e-05,2]
[342515044,1731949845954,-474.07600176,9.973e-05,2]
[342515045,1731949845967,-500.0,9.973e-05,2]
[342515046,1731949845977,-160.64090527,9.973e-05,2]
[342515047,1731949845987,-772.35,9.977e-05,2]
[342515048,1731949845997,-557.05,9.977e-05,2]
[342515049,1731949846006,-683.46,9.977e-05,2]
[342515050,1731949846016,-2074.08620427,9.978e-05,2]
[342515051,1731949846025,-2074.08620427,9.978e-05,2]
[342515053,1731949846035,-2074.08620427,9.982e-05,2]
[342515054,1731949846044,-175.214,9.983e-05,2]
[342515056,1731949846054,-1102.14805548,9.983e-05,2]
[342515058,1731949846063,-2074.08620427,9.984e-05,2]
[342515060,1731949846073,-1102.14805548,9.985e-05,2]
[342515062,1731949846082,-2074.08620427,9.986e-05,2]
[342515064,1731949846091,-1362.29,9.99e-05,2]
[342515066,1731949846100,-216.57216237,9.99e-05,2]
[342515068,1731949846110,-500.0,9.99e-05,2]
[342515070,1731949846119,-500.0,9.99e-05,2]
[342515072,1731949846129,-796.94,9.99e-05,2]
[342515074,1731949846138,-500.0,9.99e-05,2]
[342515076,1731949846148,-621.38,9.99e-05,2]
[342515078,1731949846158,-500.0,9.99e-05,2]
[342515080,1731949846167,-500.0,9.99e-05,2]
[342515082,1731949846176,-500.0,9.99e-05,2]
[342515084,1731949846186,-163.021133,9.991e-05,2]
[342515086,1731949846195,-864.174601,9.991e-05,2]
[342515088,1731949846204,-2456.8190229,9.991e-05,2]
[342515090,1731949846216,-500.0,9.991e-05,2]
[342515092,1731949846225,-7879.8094146,9.991e-05,2]
[342515094,1731949846235,-517.6986547,9.991e-05,2]
[342515096,1731949846244,-160.9135635,9.993e-05,2]
[342515098,1731949846253,-158.805994,9.993e-05,2]
[342515100,1731949846262,-156.6984245,9.993e-05,2]
[342515102,1731949846271,-154.5908549,9.993e-05,2]
[342515104,1731949846280,-2236.3684919,9.993e-05,2]
[342515106,1731949846289,-2015.9179609,9.993e-05,2]
[342515108,1731949846299,-1795.4674299,9.993e-05,2]
[342515110,1731949846308,-1575.0168989,9.993e-05,2]
[342515112,1731949846317,-7172.7536024,9.993e-05,2]
[342515114,1731949846327,-6465.6977902,9.993e-05,2]
[342515116,1731949846336,-5758.641978,9.993e-05,2]
[342515118,1731949846346,-5051.5861658,9.993e-05,2]
[342515120,1731949846355,-500.0,9.998e-05,2]
[342515122,1731949846364,-500.0,9.998e-05,2]
[342515124,1731949846373,-500.0,9.998e-05,2]
[342515126,1731949846382,-500.0,9.998e-05,2]
[342515128,1731949846394,-500.0,9.998e-05,2]
[342515130,1731949846403,-500.0,9.998e-05,2]
[342515132,1731949846412,-558.05737067,9.998e-05,2]
[342515134,1731949846421,-500.0,9.998e-05,2]
[342515136,1731949846431,-500.0,9.998e-05,2]
[342515138,1731949846440,-500.0,9.998e-05,2]
[342515140,1731949846449,-500.0,9.998e-05,2]
[342515142,1731949846459,-500.0,9.998e-05,2]
[342515144,1731949846471,-500.0,9.998e-05,2]
[342515146,1731949846480,-500.0,9.998e-05,2]
[342515148,1731949846490,-500.0,9.998e-05,2]
[342515150,1731949846499,-500.0,9.998e-05,2]
[342515152,1731949846509,-500.0,9.998e-05,2]
[342515154,1731949846518,-500.0,9.998e-05,2]
[342515156,1731949846527,-501.54354593,9.998e-05,2]
[342515158,1731949846537,-500.0,9.998e-05,2]
[342515160,1731949846547,-500.0,9.998e-05,2]
[342515162,1731949846559,-772.35,9.998e-05,2]
[342515164,1731949846569,-500.0,9.998e-05,2]
[342515167,1731949846578,-500.0,9.998e-05,2]
[342515168,1731949846588,-500.0,9.998e-05,2]
[342515170,1731949846598,-500.0,9.998e-05,2]
[342515172,1731949846607,-557.05,9.998e-05,2]
[342515174,1731949846616,-950.91,9.998e-05,2]
[342515176,1731949846625,-683.46,9.998e-05,2]
[342515178,1731949846635,-920.712,9.998e-05,2]
[342515180,1731949846644,-1992.0,9.998e-05,2]
[342515182,1731949846653,-238.40031432,9.999e-05,2]
[342515184,1731949846664,-165.2568554,9.999e-05,2]
[342515186,1731949846673,-500.0,9.999e-05,2]
[342515188,1731949846683,-302.16799564,9.999e-05,2]
[342515190,1731949846692,-500.0,9.999e-05,2]
[342515192,1731949846701,-500.0,9.999e-05,2]
[342515194,1731949846710,-500.0,9.999e-05,2]
[342515196,1731949846723,-500.0,9.999e-05,2]
[342515198,1731949846732,-500.0,9.999e-05,2]
[342515200,1731949846741,-500.0,9.999e-05,2]
[342515202,1731949846751,-500.0,9.999e-05,2]
[342515204,1731949846761,-500.0,9.999e-05,2]
[342515206,1731949846774,-500.0,9.999e-05,2]
[342515208,1731949846783,-500.0,9.999e-05,2]
[342515210,1731949846792,-500.0,9.999e-05,2]
[342515212,1731949846800,-500.0,9.999e-05,2]
[342515214,1731949846811,-500.0,9.999e-05,2]
[342515216,1731949846820,-600.85,9.999e-05,2]
[342515218,1731949846830,-500.0,9.999e-05,2]
[342515220,1731949846840,-500.0,9.999e-05,2]
[342515222,1731949846849,-500.0,9.999e-05,2]
[342515224,1731949846858,-500.0,9.999e-05,2]
[342515226,1731949846868,-582.05,9.999e-05,2]
[342515228,1731949846877,-500.0,9.999e-05,2]
[342515230,1731949846886,-500.0,9.999e-05,2]
[342515232,1731949846895,-500.0,9.999e-05,2]
[342515234,1731949846904,-500.0,9.999e-05,2]
[342515235,1731949846914,-500.0,9.999e-05,2]
[342515237,1731949846925,-500.0,9.999e-05,2]
[342515239,1731949846936,-433.58051299,9.999e-05,2]
[342515241,1731949846946,-500.0,9.999e-05,2]
[342515243,1731949846955,-500.0,9.999e-05,2]
[342515245,1731949846966,-500.0,9.999e-05,2]
[342515247,1731949846976,-500.0,9.999e-05,2]
[342515249,1731949846985,-500.0,9.999e-05,2]
[342515251,1731949846994,-500.0,9.999e-05,2]
[342515253,1731949847004,-596.17044248,9.999e-05,2]
[342515255,1731949847013,-500.0,9.999e-05,2]
[342515257,1731949847022,-500.0,9.999e-05,2]
[342515259,1731949847031,-500.0,9.999e-05,2]
[342515261,1731949847041,-500.0,9.999e-05,2]
[342515263,1731949847050,-298.72,9.999e-05,2]
[342515265,1731949847059,-500.0,9.999e-05,2]